[Event "FIDE WAC U2000 2021"]
[Site "Rhodes"]
[Date "2021.10.17"]
[Round "1.1"]
[White "Mohamed Saeed Laily"]
[Black "De Joya, Florian"]
[Result "1-0"]
[ECO "D00"]
[WhiteElo "1996"]
[BlackElo "1832"]
[Annotator "ChessBase"]
[PlyCount "85"]
[EventDate "2021.10.17"]
[EventType "swiss"]
[EventCountry "GRE"]
[SourceTitle "playchess.com"]
[Source "ChessBase"]
[SourceQuality "1"]
[TimeControl "5400+30"]

1. d4 {[%emt 0:00:02]} Nf6 {[%emt 0:00:50]} 2. Nc3 {[%emt 0:00:08]} d5 {[%emt 0:01:42]} 3. Bf4 {[%emt 0:00:07]} a6 {[%emt 0:04:09]} 4. e3 {[%emt 0:00:16]} g6 {[%emt 0:01:08]} 5. h3 {[%emt 0:02:46]} Bg7 {[%emt 0:00:20]} 6. Nf3 {[%emt 0:00:25]} O-O {[%emt 0:00:44]} 7. Be2 {[%emt 0:00:51]} c5 {[%emt 0:03:26]} 8. dxc5 {[%emt 0:04:42]} Qa5 {[%emt 0:02:33]} 9. O-O {[%emt 0:02:58]} Rd8 {[%emt 0:01:58]} 10. Ne5 {[%emt 0:13:07]} Qxc5 {[%emt 0:06:11]} 11. Qd4 {[%emt 0:03:34]} Qxd4 {[%emt 0:12:57]} 12. exd4 {[%emt 0:00:03]} e6 {[%emt 0:06:34]} 13. a4 {[%emt 0:21:01]} Nfd7 {[%emt 0:05:18]} 14. Nf3 {[%emt 0:04:47]} Nc6 {[%emt 0:00:29]} 15. Rfd1 {[%emt 0:02:04]} b6 {[%emt 0:03:04]} 16. Na2 {[%emt 0:04:06]} Bb7 {[%emt 0:08:49]} 17. c3 {[%emt 0:00:54]} Rac8 {[%emt 0:02:47]} 18. b4 {[%emt 0:03:44]} e5 {[%emt 0:03:31]} 19. Bh2 {[%emt 0:08:08]} e4 {[%emt 0:06:43]} 20. Nd2 {[%emt 0:01:28]} Ne7 {[%emt 0:01:10]} 21. Nb3 {[%emt 0:00:42]} Nc6 {[%emt 0:09:21]} 22. Bf4 {[%emt 0:02:01]} h6 {[%emt 0:01:50]} 23. g4 {[%emt 0:04:53]} Re8 {[%emt 0:01:55]} 24. Rab1 {[%emt 0:03:43]} g5 {[%emt 0:03:54]} 25. Bg3 {[%emt 0:00:55]} Ra8 {[%emt 0:00:56]} 26. b5 {[%emt 0:07:14]} axb5 {[%emt 0:04:57]} 27. Bxb5 {[%emt 0:00:02]} Bf8 {[%emt 0:02:09]} 28. Nb4 {[%emt 0:02:53]} Nxb4 {[%emt 0:01:47]} 29. cxb4 {[%emt 0:00:14]} Bc8 {[%emt 0:01:35]} 30. a5 {[%emt 0:02:55]} Bxb4 {[%emt 0:01:45]} 31. axb6 {[%emt 0:00:20]} Re7 {[%emt 0:00:01]} 32. Bc6 {[%emt 0:00:48]} Nxb6 {[%emt 0:00:20]} 33. Bxa8 {[%emt 0:00:12]} Nxa8 {[%emt 0:00:07]} 34. Nc5 {[%emt 0:00:32]} Bxc5 {[%emt 0:01:54]} 35. dxc5 {[%emt 0:00:01]} Rb7 {[%emt 0:00:32]} 36. c6 {[%emt 0:01:24]} Rb6 {[%emt 0:00:13]} 37. Rxb6 {[%emt 0:00:21]} Nxb6 {[%emt 0:00:01]} 38. Rb1 {[%emt 0:00:11]} Nc4 {[%emt 0:00:46]} 39. Rb8 {[%emt 0:00:10]} Nd2 {[%emt 0:00:16]} 40. Rxc8+ {[%emt 0:00:11]} Kh7 {[%emt 0:00:02]} 41. Rd8 {[%emt 0:00:22]} d4 {[%emt 0:00:04]} 42. c7 {[%emt 0:00:21]} Nf3+ {[%emt 0:00:21]} 43. Kf1 {[%emt 0:00:34]} 1-0

[Event "FIDE WAC U2000 2021"]
[Site "Rhodes"]
[Date "2021.10.17"]
[Round "1.4"]
[White "Kovalskyi, Roman"]
[Black "Silva Hernandez, Jesus Arturo"]
[Result "1-0"]
[ECO "B20"]
[WhiteElo "1815"]
[BlackElo "1975"]
[Annotator "ChessBase"]
[PlyCount "90"]
[EventDate "2021.10.17"]
[EventType "swiss"]
[EventCountry "GRE"]
[SourceTitle "playchess.com"]
[Source "ChessBase"]
[SourceQuality "1"]
[TimeControl "5400+30"]

1. e4 {[%emt 0:00:07]} c5 {[%emt 0:00:03]} 2. b3 {[%emt 0:00:23]} Nc6 {[%emt 0:00:52]} 3. Bb2 {[%emt 0:01:15]} Nf6 {[%emt 0:01:30]} 4. Nc3 {[%emt 0:10:40]} g6 {[%emt 0:00:15]} 5. Bc4 {[%emt 0:02:52]} Bg7 {[%emt 0:00:49]} 6. d3 {[%emt 0:00:08]} O-O {[%emt 0:05:14]} 7. Nge2 {[%emt 0:18:49]} e6 {[%emt 0:02:36]} 8. d4 {[%emt 0:02:25]} d5 {[%emt 0:02:53]} 9. exd5 {[%emt 0:00:15]} exd5 {[%emt 0:00:01]} 10. Bd3 {[%emt 0:06:15]} cxd4 {[%emt 0:28:09]} 11. Nb5 {[%emt 0:00:21]} Ne4 {[%emt 0:00:30]} 12. Nbxd4 {[%emt 0:12:48]} Qa5+ {[%emt 0:01:20]} 13. Kf1 {[%emt 0:01:53]} Qc5 {[%emt 0:06:01]} 14. Bb5 {[%emt 0:10:13]} Nxd4 {[%emt 0:00:31]} 15. Nxd4 {[%emt 0:00:09]} Bxd4 {[%emt 0:00:05]} 16. Qxd4 {[%emt 0:00:19]} Qxd4 {[%emt 0:14:39]} 17. Bxd4 {[%emt 0:00:06]} Be6 {[%emt 0:00:19]} 18. Bd3 {[%emt 0:03:01]} Nd6 {[%emt 0:02:11]} 19. c3 {[%emt 0:05:28]} Rfc8 {[%emt 0:00:25]} 20. f3 {[%emt 0:01:54]} a5 {[%emt 0:04:58]} 21. a4 {[%emt 0:01:40]} Bf5 {[%emt 0:00:02]} 22. Be2 {[%emt 0:05:24]} Bc2 {[%emt 0:01:24]} 23. Ra3 {[%emt 0:00:01]} Nf5 {[%emt 0:02:14]} 24. Be5 {[%emt 0:00:28]} Re8 {[%emt 0:01:27]} 25. Bf4 {[%emt 0:00:49]} Rac8 {[%emt 0:04:21]} 26. Bb5 {[%emt 0:02:34]} Re6 {[%emt 0:02:17]} 27. Bd2 {[%emt 0:04:07]} Ne3+ {[%emt 0:07:05]} 28. Kf2 {[%emt 0:00:25]} Nd1+ {[%emt 0:00:20]} 29. Kg3 {[%emt 0:00:25]} Nxc3 {[%emt 0:05:51]} 30. Bd7 {[%emt 0:05:31]} Re2 {[%emt 0:00:01]} 31. Bxc8 {[%emt 0:00:10]} Rxd2 {[%emt 0:00:07]} 32. Bxb7 {[%emt 0:01:14]} Ne2+ {[%emt 0:01:07]} 33. Kf2 {[%emt 0:00:55]} Nd4+ {[%emt 0:02:31]} 34. Ke3 {[%emt 0:00:37]} Rd3+ {[%emt 0:00:04]} 35. Kf4 {[%emt 0:00:02]} Nxb3 {[%emt 0:00:58]} 36. Ra2 {[%emt 0:00:34]} Rd4+ {[%emt 0:02:45]} 37. Ke5 {[%emt 0:01:04]} Bf5 {[%emt 0:00:14]} 38. Bxd5 {[%emt 0:00:22]} Rb4 {[%emt 0:01:12]} 39. Rb2 {[%emt 0:01:10]} Nc5 {[%emt 0:00:37]} 40. Rxb4 {[%emt 0:00:02]} axb4 {[%emt 0:00:13]} 41. a5 {[%emt 0:00:15]} b3 {[%emt 0:00:32]} 42. Kd6 {[%emt 0:00:32]} b2 {[%emt 0:00:30]} 43. Kxc5 {[%emt 0:00:07]} b1=Q {[%emt 0:00:23]} 44. Rxb1 {[%emt 0:00:04]} Bxb1 {[%emt 0:00:01]} 45. a6 {[%emt 0:00:05]} Be4 {[%emt 0:01:07]} 1-0

[Event "FIDE WAC U2000 2021"]
[Site "Rhodes"]
[Date "2021.10.17"]
[Round "1.5"]
[White "Mandukhai, Myagmarsuren"]
[Black "Castillo Pena, Patricia Evarista"]
[Result "1-0"]
[ECO "D45"]
[WhiteElo "1966"]
[BlackElo "1794"]
[Annotator "ChessBase"]
[PlyCount "145"]
[EventDate "2021.10.17"]
[EventType "swiss"]
[EventCountry "GRE"]
[SourceTitle "playchess.com"]
[Source "ChessBase"]
[SourceQuality "1"]
[TimeControl "5400+30"]

1. d4 {[%emt 0:00:03]} d5 {[%emt 0:00:19]} 2. c4 {[%emt 0:00:06]} c6 {[%emt 0:00:09]} 3. Nc3 {[%emt 0:00:10]} Nf6 {[%emt 0:00:12]} 4. e3 {[%emt 0:00:10]} e6 {[%emt 0:00:37]} 5. Nf3 {[%emt 0:01:35]} Nbd7 {[%emt 0:01:11]} 6. Qc2 {[%emt 0:00:05]} Bd6 {[%emt 0:01:25]} 7. b3 {[%emt 0:00:58]} O-O {[%emt 0:00:33]} 8. Be2 {[%emt 0:00:21]} b6 {[%emt 0:00:34]} 9. O-O {[%emt 0:00:49]} Bb7 {[%emt 0:02:07]} 10. Bb2 {[%emt 0:00:45]} Qe7 {[%emt 0:00:43]} 11. Rad1 {[%emt 0:01:14]} Rad8 {[%emt 0:01:53]} 12. Rfe1 {[%emt 0:01:07]} Rfe8 {[%emt 0:00:18]} 13. g3 {[%emt 0:04:34]} a6 {[%emt 0:00:18]} 14. Bf1 {[%emt 0:05:56]} c5 {[%emt 0:06:56]} 15. cxd5 {[%emt 0:04:05]} exd5 {[%emt 0:05:11]} 16. Bg2 {[%emt 0:05:02]} Nf8 {[%emt 0:42:11]} 17. Nh4 {[%emt 0:12:32]} g6 {[%emt 0:03:56]} 18. dxc5 {[%emt 0:38:51]} bxc5 {[%emt 0:03:58]} 19. Nf3 {[%emt 0:16:17]} Ne6 {[%emt 0:06:21]} 20. Ba1 {[%emt 0:00:59]} Qd7 {[%emt 0:17:48]} 21. Ne2 {[%emt 0:02:17]} Ne4 {[%emt 0:00:18]} 22. Qb2 {[%emt 0:00:32]} f6 {[%emt 0:00:34]} 23. Nc3 {[%emt 0:00:16]} Nxc3 {[%emt 0:00:43]} 24. Qxc3 {[%emt 0:00:02]} d4 {[%emt 0:00:33]} 25. exd4 {[%emt 0:01:05]} Bxf3 {[%emt 0:02:29]} 26. Qxf3 {[%emt 0:00:22]} Nxd4 {[%emt 0:00:24]} 27. Bxd4 {[%emt 0:00:40]} Rxe1+ {[%emt 0:00:18]} 28. Rxe1 {[%emt 0:00:06]} cxd4 {[%emt 0:00:07]} 29. Qxf6 {[%emt 0:01:20]} Bf8 {[%emt 0:01:17]} 30. Bh3 {[%emt 0:01:02]} Bg7 {[%emt 0:00:22]} 31. Be6+ {[%emt 0:00:26]} Kh8 {[%emt 0:00:06]} 32. Qf4 {[%emt 0:01:29]} Qd6 {[%emt 0:01:11]} 33. Qxd6 {[%emt 0:00:17]} Rxd6 {[%emt 0:00:01]} 34. Bc4 {[%emt 0:00:09]} h5 {[%emt 0:00:43]} 35. Re6 {[%emt 0:01:17]} Rxe6 {[%emt 0:00:15]} 36. Bxe6 {[%emt 0:00:05]} Kh7 {[%emt 0:00:25]} 37. Kf1 {[%emt 0:00:12]} a5 {[%emt 0:00:08]} 38. Ke2 {[%emt 0:00:09]} Kh6 {[%emt 0:00:07]} 39. Kd3 {[%emt 0:00:17]} Kg5 {[%emt 0:00:11]} 40. Kc4 {[%emt 0:00:27]} Kf6 {[%emt 0:00:13]} 41. Bd5 {[%emt 0:00:14]} Kf5 {[%emt 0:00:55]} 42. f3 {[%emt 0:00:17]} g5 {[%emt 0:00:41]} 43. Be4+ {[%emt 0:00:40]} Ke5 {[%emt 0:00:02]} 44. Bg6 {[%emt 0:00:30]} h4 {[%emt 0:00:16]} 45. Kb5 {[%emt 0:00:47]} Kd5 {[%emt 0:01:12]} 46. Kxa5 {[%emt 0:00:15]} Be5 {[%emt 0:00:36]} 47. gxh4 {[%emt 0:01:28]} gxh4 {[%emt 0:00:07]} 48. h3 {[%emt 0:00:06]} Kc5 {[%emt 0:01:26]} 49. Bd3 {[%emt 0:00:17]} Bc7+ {[%emt 0:00:18]} 50. Ka4 {[%emt 0:00:22]} Bd6 {[%emt 0:00:56]} 51. b4+ {[%emt 0:00:12]} Kd5 {[%emt 0:00:40]} 52. Kb3 {[%emt 0:00:53]} Ke5 {[%emt 0:00:12]} 53. a4 {[%emt 0:01:11]} Kf4 {[%emt 0:00:01]} 54. Kc4 {[%emt 0:01:05]} Kg3 {[%emt 0:00:54]} 55. Bf5 {[%emt 0:00:22]} Kf4 {[%emt 0:00:46]} 56. Bh7 {[%emt 0:00:47]} Kg3 {[%emt 0:00:03]} 57. b5 {[%emt 0:00:48]} Kxh3 {[%emt 0:00:04]} 58. Bf5+ {[%emt 0:00:06]} Kg3 {[%emt 0:00:02]} 59. b6 {[%emt 0:00:19]} Kf4 {[%emt 0:00:31]} 60. Bd7 {[%emt 0:01:06]} Ke3 {[%emt 0:00:04]} 61. a5 {[%emt 0:00:06]} d3 {[%emt 0:00:26]} 62. a6 {[%emt 0:00:20]} d2 {[%emt 0:00:04]} 63. Ba4 {[%emt 0:00:03]} h3 {[%emt 0:00:05]} 64. a7 {[%emt 0:00:04]} h2 {[%emt 0:00:13]} 65. a8=Q {[%emt 0:00:08]} h1=Q {[%emt 0:00:17]} 66. Qe4+ {[%emt 0:00:15]} Kf2 {[%emt 0:00:06]} 67. Qd4+ {[%emt 0:00:06]} Ke2 {[%emt 0:00:27]} 68. Qd3+ {[%emt 0:00:04]} Kf2 {[%emt 0:00:17]} 69. Qxd2+ {[%emt 0:00:05]} Kg3 {[%emt 0:00:07]} 70. Qxd6+ {[%emt 0:00:04]} Kf2 {[%emt 0:00:12]} 71. Qd4+ {[%emt 0:00:11]} Kg3 {[%emt 0:00:09]} 72. b7 {[%emt 0:00:51]} Qc1+ {[%emt 0:00:15]} 73. Kd5 {[%emt 0:00:08]} 1-0

[Event "FIDE WAC U2000 2021"]
[Site "Rhodes"]
[Date "2021.10.19"]
[Round "3.3"]
[White "Dogu, Hasim"]
[Black "Degrande, Marigje"]
[Result "*"]
[ECO "A12"]
[WhiteElo "1852"]
[BlackElo "1889"]
[Annotator "NA RC"]
[PlyCount "40"]
[EventDate "2021.10.17"]
[EventType "swiss"]
[EventCountry "GRE"]
[SourceTitle "playchess.com"]
[Source "ChessBase"]
[SourceQuality "1"]
[TimeControl "5400+30"]

1. b3 {[%emt 0:00:12]} Nf6 {[%emt 0:00:41]} 2. Bb2 {[%emt 0:00:15]} g6 {[%emt 0:00:22]} 3. e3 {[%emt 0:06:18]} d5 {[%emt 0:01:01]} 4. c4 {[%emt 0:02:05]} c6 {[%emt 0:00:55]} 5. Nf3 {[%emt 0:02:43]} Bg7 {[%emt 0:00:29]} 6. Be2 {[%emt 0:07:49]} O-O {[%emt 0:00:10]} 7. h3 {[%emt 0:00:28]} Re8 {[%emt 0:04:53]} 8. O-O {[%emt 0:02:27]} Nbd7 {[%emt 0:01:46]} 9. cxd5 {[%emt 0:00:20]} cxd5 {[%emt 0:01:20]} 10. d4 {[%emt 0:02:54]} Ne4 {[%emt 0:00:35]} 11. Nc3 {[%emt 0:02:46]} Ndf6 {[%emt 0:02:42]} 12. Rc1 {[%emt 0:06:27]} a6 {[%emt 0:00:55]} 13. Qc2 {[%emt 0:06:48]} Bf5 {[%emt 0:10:55]} 14. Nxe4 {[%emt 0:00:41]} dxe4 {[%emt 0:04:59]} 15. Ne5 {[%emt 0:01:35]} Rc8 {[%emt 0:01:56]} 16. Qd2 {[%emt 0:05:50]} Nd5 {[%emt 0:04:56]} 17. Bc4 {[%emt 0:06:22]} b5 {[%emt 0:04:38]} 18. Bxd5 {[%emt 0:10:41]} Qxd5 {[%emt 0:00:10]} 19. Rxc8 {[%emt 0:06:39]} Rxc8 {[%emt 0:06:12]} 20. Qb4 {[%emt 0:08:17]} Bf8 {[%emt 0:26:30]} *

[Event "FIDE WAC U2000 2021"]
[Site "Rhodes"]
[Date "2021.10.19"]
[Round "3.4"]
[White "Tarnowska, Aleksandra"]
[Black "Sielicki, Tomasz"]
[Result "1/2-1/2"]
[ECO "C63"]
[WhiteElo "1841"]
[BlackElo "1875"]
[Annotator "NA RC"]
[PlyCount "114"]
[EventDate "2021.10.17"]
[EventType "swiss"]
[EventCountry "GRE"]
[SourceTitle "playchess.com"]
[Source "ChessBase"]
[SourceQuality "1"]
[TimeControl "5400+30"]

1. e4 {[%emt 0:00:06]} e5 {[%emt 0:00:20]} 2. Nf3 {[%emt 0:00:12]} Nc6 {[%emt 0:00:08]} 3. Bb5 {[%emt 0:00:07]} f5 {[%emt 0:00:09]} 4. d4 {[%emt 0:00:11]} fxe4 {[%emt 0:00:38]} 5. Nxe5 {[%emt 0:00:10]} Nxe5 {[%emt 0:00:10]} 6. dxe5 {[%emt 0:00:08]} c6 {[%emt 0:00:18]} 7. Nc3 {[%emt 0:00:12]} cxb5 {[%emt 0:00:14]} 8. Nxe4 {[%emt 0:00:08]} d5 {[%emt 0:00:43]} 9. exd6 {[%emt 0:01:39]} Nf6 {[%emt 0:00:09]} 10. Bg5 {[%emt 0:00:31]} Qa5+ {[%emt 0:00:45]} 11. Nc3 {[%emt 0:00:13]} b4 {[%emt 0:01:59]} 12. Bxf6 {[%emt 0:00:39]} gxf6 {[%emt 0:01:01]} 13. Nd5 {[%emt 0:00:17]} b3+ {[%emt 0:01:45]} 14. c3 {[%emt 0:00:27]} Be6 {[%emt 0:04:19]} 15. Nc7+ {[%emt 0:12:01]} Kd7 {[%emt 0:00:23]} 16. O-O {[%emt 0:23:41]} Bxd6 {[%emt 0:07:03]} 17. Nxe6 {[%emt 0:05:52]} Qe5 {[%emt 0:08:35]} 18. g3 {[%emt 0:06:36]} Qxe6 {[%emt 0:00:19]} 19. Re1 {[%emt 0:02:52]} Qf5 {[%emt 0:08:29]} 20. Qxb3 {[%emt 0:01:36]} Kc7 {[%emt 0:07:02]} 21. Qf7+ {[%emt 0:22:09]} Kc6 {[%emt 0:01:50]} 22. b4 {[%emt 0:08:28]} Rad8 {[%emt 0:12:43]} 23. a4 {[%emt 0:03:41]} Qd5 {[%emt 0:11:00]} 24. b5+ {[%emt 0:03:21]} Kc5 {[%emt 0:00:07]} 25. Qxf6 {[%emt 0:01:24]} Rhf8 {[%emt 0:00:33]} 26. Qh4 {[%emt 0:01:37]} Kb6 {[%emt 0:14:23]} 27. a5+ {[%emt 0:03:38]} Kc7 {[%emt 0:00:16]} 28. b6+ {[%emt 0:00:38]} Kb8 {[%emt 0:02:06]} 29. bxa7+ {[%emt 0:01:50]} Ka8 {[%emt 0:01:37]} 30. a6 {[%emt 0:00:32]} Bc5 {[%emt 0:03:21]} 31. axb7+ {[%emt 0:00:27]} Qxb7 {[%emt 0:01:47]} 32. Ra2 {[%emt 0:00:34]} Qf3 {[%emt 0:03:24]} 33. Qe4+ {[%emt 0:00:26]} Qxe4 {[%emt 0:00:29]} 34. Rxe4 {[%emt 0:00:01]} Rd3 {[%emt 0:03:48]} 35. Rc4 {[%emt 0:01:00]} Rf5 {[%emt 0:00:16]} 36. Rb2 {[%emt 0:00:27]} Rdf3 {[%emt 0:00:44]} 37. Kg2 {[%emt 0:00:37]} Rxf2+ {[%emt 0:01:56]} 38. Rxf2 {[%emt 0:00:05]} Rxf2+ {[%emt 0:00:36]} 39. Kh3 {[%emt 0:00:28]} Bxa7 {[%emt 0:00:23]} 40. Rf4 {[%emt 0:00:54]} Kb7 {[%emt 0:01:44]} 41. Rxf2 {[%emt 0:00:32]} Bxf2 {[%emt 0:00:02]} 42. Kh4 {[%emt 0:00:28]} Kc6 {[%emt 0:00:34]} 43. Kh5 {[%emt 0:00:14]} Be3 {[%emt 0:00:08]} 44. g4 {[%emt 0:00:31]} Kd5 {[%emt 0:00:30]} 45. g5 {[%emt 0:00:31]} Ke6 {[%emt 0:00:06]} 46. Kh6 {[%emt 0:00:38]} Kf7 {[%emt 0:00:50]} 47. h4 {[%emt 0:00:38]} Kg8 {[%emt 0:00:05]} 48. c4 {[%emt 0:00:28]} Bc5 {[%emt 0:00:07]} 49. Kh5 {[%emt 0:00:27]} Kg7 {[%emt 0:00:23]} 50. Kg4 {[%emt 0:00:16]} h6 {[%emt 0:01:10]} 51. Kh5 {[%emt 0:00:36]} hxg5 {[%emt 0:00:07]} 52. hxg5 {[%emt 0:00:08]} Be3 {[%emt 0:00:16]} 53. g6 {[%emt 0:01:02]} Bc5 {[%emt 0:00:20]} 54. Kg5 {[%emt 0:00:08]} Be3+ {[%emt 0:00:09]} 55. Kf5 {[%emt 0:00:11]} Bc5 {[%emt 0:00:08]} 56. Kg5 {[%emt 0:00:45]} Be3+ {[%emt 0:00:05]} 57. Kf5 {[%emt 0:00:08]} Bc5 {[%emt 0:00:04]} 1/2-1/2

[Event "FIDE WAC U2000 2021"]
[Site "Rhodes"]
[Date "2021.10.19"]
[Round "3.5"]
[White "Rudecki, Bartosz"]
[Black "Tenuunbold, Battulga"]
[Result "1/2-1/2"]
[ECO "B20"]
[WhiteElo "1859"]
[BlackElo "1753"]
[Annotator "NA RC"]
[PlyCount "56"]
[EventDate "2021.10.17"]
[EventType "swiss"]
[EventCountry "GRE"]
[SourceTitle "playchess.com"]
[Source "ChessBase"]
[SourceQuality "1"]
[TimeControl "5400+30"]

1. e4 {[%emt 0:01:26]} c5 {[%emt 0:00:04]} 2. b3 {[%emt 0:00:03]} Nf6 {[%emt 0:00:49]} 3. e5 {[%emt 0:04:30]} Nd5 {[%emt 0:00:05]} 4. Bb2 {[%emt 0:00:52]} Nc6 {[%emt 0:00:24]} 5. Bc4 {[%emt 0:02:13]} e6 {[%emt 0:00:56]} 6. Nf3 {[%emt 0:02:24]} Be7 {[%emt 0:00:40]} 7. O-O {[%emt 0:00:22]} O-O {[%emt 0:00:44]} 8. Re1 {[%emt 0:00:46]} f6 {[%emt 0:03:12]} 9. d4 {[%emt 0:07:31]} cxd4 {[%emt 0:01:39]} 10. Bxd5 {[%emt 0:02:34]} exd5 {[%emt 0:00:06]} 11. Nxd4 {[%emt 0:00:16]} fxe5 {[%emt 0:00:14]} 12. Nf3 {[%emt 0:02:16]} d6 {[%emt 0:00:21]} 13. Qxd5+ {[%emt 0:00:11]} Kh8 {[%emt 0:00:03]} 14. c4 {[%emt 0:04:42]} Bg4 {[%emt 0:00:46]} 15. Nbd2 {[%emt 0:02:57]} Nb4 {[%emt 0:01:02]} 16. Qxb7 {[%emt 0:01:35]} Nc2 {[%emt 0:00:11]} 17. Rac1 {[%emt 0:05:48]} Nxe1 {[%emt 0:00:22]} 18. Nxe1 {[%emt 0:00:12]} Bg5 {[%emt 0:01:26]} 19. Rc2 {[%emt 0:01:09]} Bd1 {[%emt 0:14:13]} 20. Rc1 {[%emt 0:01:07]} Bxd2 {[%emt 0:02:45]} 21. Rxd1 {[%emt 0:05:55]} Bxe1 {[%emt 0:02:32]} 22. Rxe1 {[%emt 0:00:07]} Qa5 {[%emt 0:00:08]} 23. Re2 {[%emt 0:02:49]} Qxa2 {[%emt 0:03:31]} 24. f3 {[%emt 0:00:46]} Rab8 {[%emt 0:07:40]} 25. Qe7 {[%emt 0:00:58]} Rfe8 {[%emt 0:07:20]} 26. Qxd6 {[%emt 0:05:27]} Rxb3 {[%emt 0:00:57]} 27. Qd7 {[%emt 0:00:57]} Rg8 {[%emt 0:01:32]} 28. Bxe5 {[%emt 0:00:46]} Qxe2 {[%emt 0:05:02]} 1/2-1/2

[Event "FIDE WAC U2000 2021"]
[Site "Rhodes"]
[Date "2021.10.20"]
[Round "4.1"]
[White "Degrande, Marigje"]
[Black "Peter Anand, A."]
[Result "1/2-1/2"]
[ECO "D26"]
[WhiteElo "1889"]
[BlackElo "1787"]
[Annotator "NA"]
[PlyCount "77"]
[EventDate "2021.10.17"]
[EventType "swiss"]
[EventCountry "GRE"]
[SourceTitle "playchess.com"]
[Source "ChessBase"]
[SourceQuality "1"]
[TimeControl "5400+30"]

1. c4 {[%emt 0:00:02]} c6 {[%emt 0:00:22]} 2. e4 {[%emt 0:00:04]} d5 {[%emt 0:04:21]} 3. cxd5 {[%emt 0:00:04]} cxd5 {[%emt 0:00:14]} 4. exd5 {[%emt 0:00:04]} Qxd5 {[%emt 0:01:28]} 5. Nc3 {[%emt 0:00:04]} Qd8 {[%emt 0:03:38]} 6. Nf3 {[%emt 0:00:06]} Nf6 {[%emt 0:00:46]} 7. Bc4 {[%emt 0:00:12]} e6 {[%emt 0:01:44]} 8. O-O {[%emt 0:00:26]} Be7 {[%emt 0:02:06]} 9. d4 {[%emt 0:00:15]} O-O {[%emt 0:00:21]} 10. Qe2 {[%emt 0:00:51]} Nc6 {[%emt 0:02:54]} 11. Rd1 {[%emt 0:00:34]} Na5 {[%emt 0:08:26]} 12. Bd3 {[%emt 0:00:54]} b6 {[%emt 0:02:16]} 13. Bf4 {[%emt 0:04:50]} Bb7 {[%emt 0:03:48]} 14. Rac1 {[%emt 0:05:05]} Nd5 {[%emt 0:09:16]} 15. Bg3 {[%emt 0:05:08]} Bg5 {[%emt 0:08:46]} 16. Nxg5 {[%emt 0:04:10]} Qxg5 {[%emt 0:00:13]} 17. Ne4 {[%emt 0:00:40]} Qh6 {[%emt 0:10:59]} 18. Nd6 {[%emt 0:14:12]} Nf4 $2 {[%emt 0:05:05]} (18... Rad8 $14) 19. Bxf4 {[%emt 0:03:05]} (19. Qd2 $18 Nd5 20. Qxh6 gxh6 21. Be4) 19... Qxf4 {[%emt 0:01:01] [#]} 20. Nxb7 {[%emt 0:00:07]} (20. Qe5 $142 $1 {[%cal Re5f4]} Qxe5 21. dxe5) 20... Nxb7 {[%emt 0:00:05]} 21. Qe4 {[%emt 0:00:31]} (21. g3 $16 Qh6 22. Qe5) 21... Qxe4 {[%emt 0:00:07]} 22. Bxe4 {[%emt 0:00:03]} Rab8 {[%emt 0:00:07]} 23. d5 {[%emt 0:05:04]} Nc5 $11 {[%emt 0:03:03]} 24. Bf3 {[%emt 0:01:16]} exd5 {[%emt 0:00:10]} 25. Rxd5 {[%emt 0:00:51]} Rfd8 {[%emt 0:06:31]} 26. Rcd1 {[%emt 0:03:00]} Rxd5 {[%emt 0:00:43]} 27. Rxd5 {[%emt 0:00:15]} a5 {[%emt 0:02:05]} 28. Kf1 {[%emt 0:01:56]} Kf8 {[%emt 0:00:44]} 29. a3 {[%emt 0:15:04]} Ke7 {[%emt 0:00:56]} 30. Ke1 {[%emt 0:02:48]} Rd8 {[%emt 0:01:14]} 31. Rxd8 {[%emt 0:03:04]} Kxd8 {[%emt 0:00:03]} 32. Kd2 {[%emt 0:00:26]} Kd7 {[%emt 0:02:02]} 33. Kc3 {[%emt 0:03:12]} Kd6 {[%emt 0:01:23]} 34. b4 {[%emt 0:04:44]} axb4+ {[%emt 0:00:08]} 35. axb4 {[%emt 0:00:07]} Ne6 {[%emt 0:02:46]} 36. Kc4 {[%emt 0:02:35]} Nc7 {[%emt 0:01:20]} 37. Bb7 {[%emt 0:03:16]} Ke5 {[%emt 0:01:05]} 38. Bc6 {[%emt 0:01:04]} Kd6 {[%emt 0:00:06]} 39. Bb7 {[%emt 0:00:45]} 1/2-1/2

[Event "FIDE WAC U2000 2021"]
[Site "Rhodes"]
[Date "2021.10.20"]
[Round "4.2"]
[White "Tenuunbold, Battulga"]
[Black "Mohamed Saeed Laily"]
[Result "1/2-1/2"]
[ECO "D36"]
[WhiteElo "1753"]
[BlackElo "1996"]
[Annotator "ChessBase"]
[PlyCount "75"]
[EventDate "2021.10.17"]
[EventType "swiss"]
[EventCountry "GRE"]
[SourceTitle "playchess.com"]
[Source "ChessBase"]
[SourceQuality "1"]
[TimeControl "5400+30"]

1. d4 {[%emt 0:00:02]} d5 {[%emt 0:00:04]} 2. c4 {[%emt 0:00:05]} e6 {[%emt 0:00:04]} 3. Nc3 {[%emt 0:00:04]} Nf6 {[%emt 0:00:05]} 4. cxd5 {[%emt 0:00:07]} exd5 {[%emt 0:00:01]} 5. Bg5 {[%emt 0:00:09]} Be7 {[%emt 0:00:06]} 6. Qc2 {[%emt 0:00:10]} c6 {[%emt 0:00:06]} 7. e3 {[%emt 0:00:30]} Nbd7 {[%emt 0:00:13]} 8. Bd3 {[%emt 0:00:32]} O-O {[%emt 0:00:06]} 9. Nf3 {[%emt 0:00:09]} Re8 {[%emt 0:00:12]} 10. O-O {[%emt 0:00:23]} Nf8 {[%emt 0:00:18]} 11. h3 {[%emt 0:00:25]} Bd6 {[%emt 0:01:15]} 12. Rab1 {[%emt 0:04:32]} a5 {[%emt 0:00:07]} 13. a3 {[%emt 0:00:10]} Ng6 {[%emt 0:00:11]} 14. b4 {[%emt 0:15:11]} h6 {[%emt 0:00:18]} 15. Bxf6 {[%emt 0:01:26]} Qxf6 {[%emt 0:00:01]} 16. Bxg6 {[%emt 0:06:36]} fxg6 {[%emt 0:00:19]} 17. e4 {[%emt 0:03:53]} Qf4 {[%emt 0:07:43]} 18. e5 {[%emt 0:03:39]} Bf5 {[%emt 0:01:50]} 19. Qb2 {[%emt 0:05:22]} Bxb1 {[%emt 0:01:33]} 20. Qxb1 {[%emt 0:00:03]} axb4 {[%emt 0:06:11]} 21. Ne2 {[%emt 0:21:34]} Qe4 {[%emt 0:30:38]} 22. exd6 {[%emt 0:01:48]} Qxb1 {[%emt 0:02:22]} 23. Rxb1 {[%emt 0:00:13]} Rxe2 {[%emt 0:00:06]} 24. Rxb4 {[%emt 0:00:15]} Re6 {[%emt 0:10:04]} 25. d7 {[%emt 0:11:02]} b5 {[%emt 0:00:11]} 26. a4 {[%emt 0:00:56]} bxa4 {[%emt 0:15:53]} 27. Rxa4 {[%emt 0:00:17]} Rd8 {[%emt 0:00:09]} 28. Ra7 {[%emt 0:00:49]} Kf7 {[%emt 0:09:48]} 29. Rc7 {[%emt 0:02:19]} g5 {[%emt 0:04:46]} 30. g3 {[%emt 0:13:20]} Ke7 {[%emt 0:01:39]} 31. Ne5 {[%emt 0:00:05]} Rxe5 {[%emt 0:00:07]} 32. dxe5 {[%emt 0:00:02]} Ke6 {[%emt 0:00:58]} 33. f4 {[%emt 0:00:07]} gxf4 {[%emt 0:02:03]} 34. gxf4 {[%emt 0:00:28]} c5 {[%emt 0:06:13]} 35. Rc6+ {[%emt 0:07:05]} Kxd7 {[%emt 0:00:01]} 36. Rxc5 {[%emt 0:00:12]} Ke6 {[%emt 0:00:19]} 37. Kf2 {[%emt 0:00:36]} Rc8 {[%emt 0:00:59]} 38. Ke1 {[%emt 0:00:04]} 1/2-1/2